[Event "2nd Late Dr Abul K C Chess-ch A 2022"]
[Site "Dhaka"]
[Date "2022.07.03"]
[Round "1.6"]
[White "abzid, Rahman"]
[Black "Mehdi Hasan Parag"]
[Result "0-1"]
[ECO "E51"]
[WhiteElo "2036"]
[BlackElo "2227"]
[Annotator "RC"]
[PlyCount "95"]
[EventDate "2022.07.03"]
[EventCountry "BAN"]
[SourceTitle "playchess.com"]
[Source "ChessBase"]
[SourceQuality "1"]
[TimeControl "5400+30"]

1. d4 {[%emt 0:00:05]} Nf6 {[%emt 0:00:03]} 2. c4 {[%emt 0:00:23]} e6 {[%emt 0:00:04]} 3. Nf3 {[%emt 0:00:22]} d5 {[%emt 0:00:06]} 4. Nc3 {[%emt 0:00:56]} Bb4 {[%emt 0:00:05]} 5. e3 {[%emt 0:02:00]} O-O {[%emt 0:00:23]} 6. Bd2 {[%emt 0:00:21]} Re8 {[%emt 0:00:31]} 7. a3 {[%emt 0:00:27]} Bd6 {[%emt 0:00:26]} 8. c5 {[%emt 0:00:41]} Bf8 {[%emt 0:00:11]} 9. Ne5 {[%emt 0:00:39]} c6 {[%emt 0:01:24]} 10. Bd3 {[%emt 0:00:31]} b6 {[%emt 0:03:50]} 11. b4 {[%emt 0:01:14]} a5 {[%emt 0:00:18]} 12. O-O {[%emt 0:04:45]} bxc5 {[%emt 0:04:20]} 13. bxc5 {[%emt 0:00:21]} Ba6 {[%emt 0:00:10]} 14. Bxa6 {[%emt 0:01:46]} Rxa6 {[%emt 0:00:05]} 15. Rb1 {[%emt 0:01:51]} Nfd7 {[%emt 0:02:32]} 16. f4 {[%emt 0:04:52]} f6 {[%emt 0:02:56]} 17. Nxd7 {[%emt 0:03:35]} Nxd7 {[%emt 0:03:29]} 18. Rb7 {[%emt 0:01:35]} Ra8 {[%emt 0:01:19]} 19. Qb3 {[%emt 0:04:33]} Kh8 {[%emt 0:00:52]} 20. Na4 {[%emt 0:04:49]} Qc8 {[%emt 0:01:56]} 21. Rb1 {[%emt 0:01:01]} e5 {[%emt 0:01:14]} 22. Qd3 {[%emt 0:02:22]} exd4 {[%emt 0:03:31]} 23. exd4 {[%emt 0:00:22]} Re4 {[%emt 0:01:46]} 24. Kf1 {[%emt 0:13:18]} Qe8 {[%emt 0:12:38]} 25. Re1 {[%emt 0:09:48]} f5 {[%emt 0:07:33]} 26. Rxe4 {[%emt 0:01:59]} dxe4 {[%emt 0:01:53]} 27. Qb3 {[%emt 0:00:46]} Nf6 {[%emt 0:02:08]} 28. Be3 {[%emt 0:11:31]} Qh5 {[%emt 0:05:50]} 29. Nb6 {[%emt 0:12:26]} Rd8 {[%emt 0:00:52]} 30. h3 {[%emt 0:01:19]} h6 {[%emt 0:04:08]} 31. Rc7 {[%emt 0:01:24]} Bxc5 {[%emt 0:02:52]} 32. dxc5 {[%emt 0:01:54]} Rd3 {[%emt 0:01:57]} 33. Qc2 {[%emt 0:04:21]} Rxe3 {[%emt 0:01:11]} 34. Rxc6 {[%emt 0:02:07]} Rxa3 {[%emt 0:00:30]} 35. Nc4 {[%emt 0:04:08]} Ra1+ {[%emt 0:00:44]} 36. Kf2 {[%emt 0:00:21]} Qh4+ {[%emt 0:00:13]} 37. Ke3 {[%emt 0:00:49]} Qg3+ {[%emt 0:00:53]} 38. Kd4 {[%emt 0:00:04]} Qxf4 {[%emt 0:01:33]} 39. g3 {[%emt 0:01:00]} Qxg3 {[%emt 0:01:24]} 40. Rxf6 {[%emt 0:00:11]} gxf6 {[%emt 0:00:28]} 41. c6 {[%emt 0:00:14]} Qc7 {[%emt 0:10:58]} 42. Kc5 {[%emt 0:00:58]} Rg1 {[%emt 0:01:37]} 43. Qb2 {[%emt 0:01:49]} Qe7+ {[%emt 0:00:17]} 44. Nd6 {[%emt 0:00:52]} Rg8 {[%emt 0:02:14]} 45. Qd2 {[%emt 0:01:30]} e3 {[%emt 0:00:28]} 46. Qh2 {[%emt 0:00:36]} e2 {[%emt 0:00:43]} 47. Qf4 {[%emt 0:00:02]} Rg5 {[%emt 0:01:47]} 48. Kd4 {[%emt 0:01:32]} 0-1

[Event "2nd Late Dr Abul K C Chess-ch A 2022"]
[Site "Dhaka"]
[Date "2022.07.03"]
[Round "2.1"]
[White "Nayem, Haque"]
[Black "Rahman, Ziaur"]
[Result "1/2-1/2"]
[ECO "B12"]
[WhiteElo "2184"]
[BlackElo "2424"]
[Annotator "TA"]
[PlyCount "31"]
[EventDate "2022.07.03"]
[EventCountry "BAN"]
[SourceTitle "playchess.com"]
[Source "ChessBase"]
[SourceQuality "1"]
[TimeControl "5400+30"]

{[%evp 13,31,4,22,8,8,13,14,13,20,24,25,16,24,19,13,0,0,0,8,9]} 1. e4 {[%emt 0:17:55]} c6 {[%emt 0:02:55][%cal Bc7c6,Bc6c5][%mdl 32]} 2. d4 {[%emt 0:00:46]} d5 {[%emt 0:00:07]} 3. e5 {[%emt 0:00:02]} Bf5 {[%emt 0:01:27]} 4. Nf3 {[%emt 0:00:04]} e6 {[%emt 0:00:06]} 5. Be2 {[%emt 0:00:06]} c5 {[%emt 0:02:20]} 6. O-O {[%emt 0:00:20]} Nc6 {[%emt 0:00:16]} 7. c3 {[%emt 0:00:57]} Bg6 {[%emt 0:03:39]} 8. Be3 {[%emt 0:00:56] B12: Caro-Kann: Advance Variation.} cxd4 {[%emt 0:00:29]} 9. Nxd4 {[%emt 0:00:15]} Nge7 {[%emt 0:03:04]} 10. f4 {[%emt 0:02:32] [#]} Qd7 $146 {[%emt 0:10:56]} ({Predecessor:} 10... Nf5 11. Nxf5 Bxf5 12. Nd2 h6 13. Nf3 Be7 14. Bd3 Bxd3 15. Qxd3 g6 16. Rad1 Qa5 {0-1 (52) Van Foreest,J (2614)-Esipenko,A (2593) Skopje 2018}) 11. Nd2 {[%emt 0:03:46]} Nxd4 {[%emt 0:00:42]} 12. cxd4 {[%emt 0:01:37]} Nc6 {[%emt 0:04:27]} 13. Rc1 {[%emt 0:03:26]} Be7 {[%emt 0:00:10] The position is equal.} 14. Bb5 {[%emt 0:07:42]} O-O {[%emt 0:01:05]} 15. Qa4 {[%emt 0:03:42]} Rfc8 {[%emt 0:00:54]} 16. Nb3 {[%emt 0:00:07] Not much happened in this game.  Weighted Error Value: White=0.03 (flawless) /Black=0.04 (flawless)} 1/2-1/2

[Event "2nd Late Dr Abul K C Chess-ch A 2022"]
[Site "Dhaka"]
[Date "2022.07.03"]
[Round "2.3"]
[White "Islam, Khandaker Aminul"]
[Black "Zia, Tahsin Tajwar"]
[Result "1/2-1/2"]
[ECO "D31"]
[WhiteElo "2182"]
[BlackElo "2307"]
[Annotator "TA"]
[PlyCount "55"]
[EventDate "2022.07.03"]
[EventCountry "BAN"]
[SourceTitle "playchess.com"]
[Source "ChessBase"]
[SourceQuality "1"]
[TimeControl "5400+30"]

{[%evp 9,55,15,37,-34,-27,-33,-9,-30,-36,-41,-35,-45,-39,-47,-40,-57,-31,-35,-24,-43,-39,-45,-51,-56,-52,-53,-54,-51,-35,-85,-68,-75,-62,-85,-68,-81,-75,-54,-49,-47,-23,-23,-23,-24,-14,-27,0,-31]} 1. d4 {[%emt 0:00:03]} d5 {[%emt 0:03:36]} 2. c4 {[%emt 0:00:26]} e6 {[%emt 0:00:17][%cal Be7e6,Be6e5,Be5e4][%mdl 32]} 3. Nc3 {[%emt 0:00:06]} a6 {[%emt 0:01:25]} 4. c5 {[%emt 0:00:19]} Nc6 {[%emt 0:03:26]} 5. Nf3 {[%emt 0:00:53]} e5 {[%emt 0:10:53]} 6. e3 {[%emt 0:00:50] D31: Queen's Gambit Declined: Semi-Slav without ...Nf6 (+ Marshall Gambit and Noteboom) and Exchange Variation lines without ...Nf6.} ({Don't play} 6. dxe5 d4 7. Na4 Bf5 $11) (6. Nxe5 $14 Nxe5 7. dxe5) 6... e4 $15 {[%emt 0:05:29]} 7. Nd2 {[%emt 0:00:02]} f5 {[%emt 0:02:24]} 8. g3 {[%emt 0:02:01]} Nf6 {[%emt 0:00:13] [#]} 9. Be2 $146 {[%emt 0:01:09]} ({Predecessor:} 9. h4 Be7 10. Nb3 O-O 11. Bd2 Be6 12. Rc1 Ng4 13. Be2 Qe8 14. a3 Rf6 15. Na2 {0-1 (29) Jobava,B (2603)-Grachev,B (2612) Chess.com INT 2020}) 9... Be6 {[%emt 0:02:32][%cal Bc8e6,Be6f7,Bf7h5][%mdl 32]} 10. a3 {[%emt 0:00:15]} Qd7 {[%emt 0:00:46]} 11. b4 {[%emt 0:01:37]} Be7 {[%emt 0:02:56]} 12. Nb3 {[%emt 0:02:56]} O-O {[%emt 0:01:30]} 13. Bd2 {[%emt 0:01:15]} Nd8 {[%emt 0:06:04]} 14. Qc2 {[%emt 0:00:34]} Bf7 {[%emt 0:02:14]} 15. f4 {[%emt 0:02:28]} exf3 {[%emt 0:01:53]} 16. Bxf3 {[%emt 0:00:02]} Ne4 {[%emt 0:02:13]} 17. O-O {[%emt 0:00:22]} Ne6 {[%emt 0:02:15]} 18. Bg2 {[%emt 0:00:06]} Bh5 {[%emt 0:04:33]} 19. Rae1 {[%emt 0:00:53]} (19. c6 $15 bxc6 20. Rac1) 19... c6 $17 {[%emt 0:01:42]} 20. Ne2 {[%emt 0:00:21]} g5 {[%emt 0:01:51]} 21. Nec1 {[%emt 0:02:00]} Bd8 {[%emt 0:01:26]} 22. Nd3 {[%emt 0:00:50]} Bc7 {[%emt 0:00:09]} 23. Bc1 {[%emt 0:04:15]} Rae8 {[%emt 0:03:10][%cal Oe4g3] aiming for ...Nxg3!} 24. Ne5 $1 {[%emt 0:02:00]} Bxe5 {[%emt 0:01:06]} 25. dxe5 {[%emt 0:00:01]} Qg7 {[%emt 0:00:49]} 26. Bb2 {[%emt 0:00:12]} Bg6 {[%emt 0:00:05] White must now prevent ...f4.} 27. Qc1 {[%emt 0:02:31]} (27. Bxe4 $5 dxe4 28. Qc4 $11) 27... h5 {[%emt 0:08:13]} 28. Nd4 {[%emt 0:00:54] Weighted Error Value: White=0.14 (very precise) /Black=0.07 (flawless)} (28. Bxe4 $5 fxe4 29. Rf6 $11) 1/2-1/2

[Event "2nd Late Dr Abul K C Chess-ch A 2022"]
[Site "Dhaka"]
[Date "2022.07.03"]
[Round "2.4"]
[White "Mohammad Minhaz Uddin"]
[Black "Sadnan Hasan, Dihan"]
[Result "1/2-1/2"]
[ECO "B85"]
[WhiteElo "2260"]
[BlackElo "2107"]
[Annotator "TA"]
[PlyCount "47"]
[EventDate "2022.07.03"]
[EventCountry "BAN"]
[SourceTitle "playchess.com"]
[Source "ChessBase"]
[SourceQuality "1"]
[TimeControl "5400+30"]

{[%evp 27,34,15,22,26,16,0,0,13,7]} 1. e4 {[%emt 0:14:30]} c5 {[%emt 0:00:42]} 2. Nf3 {[%emt 0:00:08]} e6 {[%emt 0:00:06]} 3. d4 {[%emt 0:00:04]} cxd4 {[%emt 0:00:05]} 4. Nxd4 {[%emt 0:00:04]} Nc6 {[%emt 0:00:05]} 5. Nc3 {[%emt 0:00:20]} Qc7 {[%emt 0:00:06]} 6. Be2 {[%emt 0:00:03]} Nf6 {[%emt 0:01:17]} 7. O-O {[%emt 0:00:15]} a6 {[%emt 0:00:03]} 8. Be3 {[%emt 0:01:00]} Be7 {[%emt 0:05:44]} 9. f4 {[%emt 0:00:10]} d6 {[%emt 0:00:12]} 10. Kh1 {[%emt 0:00:09]} O-O {[%emt 0:08:34]} 11. Qe1 {[%emt 0:00:09]} Bd7 {[%emt 0:07:11]} 12. Qg3 {[%emt 0:00:08]} Kh8 {[%emt 0:16:37]} 13. Rae1 {[%emt 0:01:27]} b5 {[%emt 0:07:00]} 14. a3 {[%emt 0:01:13]} Rab8 {[%emt 0:03:01]} 15. Bd3 {[%emt 0:07:50] B85: Sicilian Scheveningen: 6 Be2 a6, lines with early Be3.} b4 {[%emt 0:04:25]} 16. Nxc6 {[%emt 0:00:59]} Bxc6 {[%emt 0:00:36]} 17. axb4 {[%emt 0:00:09]} Rxb4 {[%emt 0:00:58] [#] An interesting draw.  Weighted Error Value: White=0.07 (flawless) /Black=0.03 (flawless)} {Predecessor:} 18. Bc1 $146 Qb7 19. Qe3 Re8 20. b3 d5 21. e5 Ng4 22. Qh3 Nh6 23. Bd2 Rc8 24. Ne2 {0-1 (44) Nihal,S (2572)-Bachmann,A (2611) Chess.com INT 2019} 1/2-1/2

[Event "2nd Late Dr Abul K C Chess-ch A 2022"]
[Site "Dhaka"]
[Date "2022.07.03"]
[Round "2.5"]
[White "Rahman, Syed Mahfuzur"]
[Black "Subrota, Biswas"]
[Result "0-1"]
[ECO "E48"]
[WhiteElo "2122"]
[BlackElo "2253"]
[Annotator "TA"]
[PlyCount "77"]
[EventDate "2022.07.03"]
[EventCountry "BAN"]
[SourceTitle "playchess.com"]
[Source "ChessBase"]
[SourceQuality "1"]
[TimeControl "5400+30"]

{[%evp 14,77,0,0,0,-31,-25,-33,-18,-55,-8,-49,-37,-55,-52,-35,-62,-102,-88,-93,-101,-97,-93,-84,-73,-77,-78,-89,-80,-71,-79,-147,-91,-160,-167,-207,-202,-184,-186,-246,-254,-244,-262,-254,-250,-239,-218,-236,-201,-315,-264,-260,-207,-194,-140,-135,-120,-175,-140,-197,-119,-148,-150,-168,-152,-473]} 1. d4 {[%emt 0:00:04]} Nf6 {[%emt 0:01:30]} 2. c4 {[%emt 0:01:56]} e6 {[%emt 0:02:35]} 3. Nc3 {[%emt 0:00:18]} Bb4 {[%emt 0:01:30]} 4. e3 {[%emt 0:00:09]} O-O {[%emt 0:01:04]} 5. Bd3 {[%emt 0:00:10]} d5 {[%emt 0:00:44]} 6. cxd5 {[%emt 0:00:28]} exd5 {[%emt 0:00:57]} 7. a3 {[%emt 0:10:34]} Bd6 {[%emt 0:00:53]} 8. Nge2 {[%emt 0:00:27]} Re8 {[%emt 0:04:21] E48: Nimzo-Indian: Rubinstein: 5 Bd3 d5 including 6 Ne2, but excluding 6 a3.} 9. f3 {[%emt 0:12:17]} c5 {[%emt 0:02:29]} 10. O-O {[%emt 0:10:52]} a6 {[%emt 0:01:44] [#] Black is slightly better.} 11. Bd2 $146 {[%emt 0:08:07]} ({Predecessor:} 11. Qe1 Nc6 12. Qh4 Be7 13. Qf2 b5 14. Bd2 g6 15. Rad1 {1-0 (41) Gavrish,L (2114)-Ahlander,B (2433) Heraklion 2017}) 11... b6 {[%emt 0:08:18]} (11... Nc6 $15) 12. Rc1 {[%emt 0:02:01]} Bb7 {[%emt 0:02:10]} 13. Qe1 {[%emt 0:13:04]} Nc6 {[%emt 0:05:52][%cal Bb8c6,Bc6a5,Ba5b3,Bb3d2][%mdl 32]} 14. Qf2 {[%emt 0:12:45]} Na5 {[%emt 0:04:56]} 15. Rce1 {[%emt 0:03:11][%cal Oe3e4]} Qc7 {[%emt 0:04:05]} 16. g3 {[%emt 0:01:04]} Nb3 {[%emt 0:01:24]} 17. Nc1 {[%emt 0:00:31]} Nxd2 {[%emt 0:00:20] Black is more active.} 18. Qxd2 {[%emt 0:00:02]} Re7 {[%emt 0:00:38]} 19. Bf5 {[%emt 0:03:10]} Rae8 {[%emt 0:04:25]} 20. Nd3 {[%emt 0:00:40]} g6 {[%emt 0:08:26]} 21. Bh3 {[%emt 0:00:10]} Kg7 $36 {[%emt 0:00:26][%mdl 2048] Black is really pushing.} 22. Kf2 {[%emt 0:11:09]} (22. f4 $142) 22... h5 {[%emt 0:03:52]} (22... cxd4 23. exd4 Qc4 24. Rxe7 Rxe7 25. Nf4 $11) (22... c4 $142 23. Nb4 b5) 23. Kg2 {[%emt 0:01:33]} ({White should play} 23. Kg1) 23... h4 $17 {[%emt 0:05:57]} 24. Qf2 {[%emt 0:02:41]} hxg3 {[%emt 0:03:01]} 25. hxg3 {[%emt 0:00:03]} Rh8 {[%emt 0:01:55]} 26. Rh1 {[%emt 0:00:45]} (26. Rc1 {was called for.}) 26... cxd4 $19 {[%emt 0:00:01]} 27. exd4 {[%emt 0:00:14] [#]} Ne4 $1 {[%emt 0:00:01][%mdl 512]} 28. fxe4 {[%emt 0:01:18]} dxe4 {[%emt 0:00:03] And now ...e3+ would win.} 29. d5 {[%emt 0:00:54]} exd3 {[%emt 0:00:07]} 30. Rxe7 {[%emt 0:02:31]} (30. Ref1 $2 Be5 31. Bg4 Rxh1 32. Kxh1 Bxc3 33. bxc3 Bxd5+ 34. Kg1 Qxc3 $19) 30... Qxe7 {[%emt 0:00:08] Really sharp!} 31. Qd4+ {[%emt 0:01:34]} (31. Rd1 $142) 31... Qe5 {[%emt 0:00:01]} 32. Qxd3 {[%emt 0:00:25]} Rh5 {[%emt 0:00:01] White must now prevent ...Rg5.} 33. Rf1 {[%emt 0:01:18]} Rg5 {[%emt 0:00:26]} ({Weaker is} 33... Bxd5+ 34. Nxd5 Qxd5+ 35. Qxd5 Rxd5 36. Bc8 $17) (33... Qe7 $19 34. Rf3 (34. Bg4 $2 Rg5 $19) 34... a5) 34. Rf3 $17 {[%emt 0:00:12]} f5 {[%emt 0:00:30]} 35. Kh2 {[%emt 0:00:38]} (35. Qe3 $17 Qxe3 36. Rxe3) 35... Qf6 {[%emt 0:03:57]} 36. Bg2 {[%emt 0:00:28]} (36. Qd2 $17 {is a better defense.} Rh5 37. Ne4) 36... Be5 {[%emt 0:00:33]} (36... a5 $19 {...Rg4 is the strong threat.} 37. Bh3 Rh5) 37. Kg1 {[%emt 0:00:39]} Qd6 {[%emt 0:01:58][%cal Rg5g3]} 38. Kf2 {[%emt 0:00:23]} Rg4 {[%emt 0:03:11] aiming for ...Rd4.} 39. Bh1 $2 {[%emt 0:01:15] Weighted Error Value: White=0.22 (precise) /Black=0.13 (very precise)} (39. Ne2 $17) 0-1

[Event "2nd Late Dr Abul K C Chess-ch A 2022"]
[Site "Dhaka"]
[Date "2022.07.03"]
[Round "2.6"]
[White "Mehdi Hasan Parag"]
[Black "Masum, Hossain"]
[Result "0-1"]
[ECO "C02"]
[WhiteElo "2227"]
[BlackElo "2100"]
[Annotator "RC"]
[PlyCount "80"]
[EventDate "2022.07.03"]
[EventCountry "BAN"]
[SourceTitle "playchess.com"]
[Source "ChessBase"]
[SourceQuality "1"]
[TimeControl "5400+30"]

1. e4 {[%emt 0:17:30]} e6 {[%emt 0:18:43]} 2. d4 {[%emt 0:00:16]} d5 {[%emt 0:00:01]} 3. e5 {[%emt 0:00:13]} c5 {[%emt 0:00:01]} 4. c3 {[%emt 0:00:11]} Nc6 {[%emt 0:00:02]} 5. Nf3 {[%emt 0:00:07]} Bd7 {[%emt 0:00:03]} 6. Bd3 {[%emt 0:00:06]} Qb6 {[%emt 0:00:09]} 7. dxc5 {[%emt 0:00:07]} Bxc5 {[%emt 0:00:03]} 8. b4 {[%emt 0:00:14]} Bxf2+ {[%emt 0:01:10]} 9. Ke2 {[%emt 0:00:05]} Nh6 {[%emt 0:00:35]} 10. Qd2 {[%emt 0:19:28]} d4 {[%emt 0:08:20]} 11. Qg5 {[%emt 0:02:14]} dxc3 {[%emt 0:01:05]} 12. b5 {[%emt 0:06:51]} Nb4 {[%emt 0:06:36]} 13. Ba3 {[%emt 0:16:01]} Bc5 {[%emt 0:01:54]} 14. Bxb4 {[%emt 0:04:16]} Bxb4 {[%emt 0:00:08]} 15. a4 {[%emt 0:09:57]} O-O {[%emt 0:00:09]} 16. Qf4 {[%emt 0:01:05]} Qc5 {[%emt 0:06:23]} 17. Rc1 {[%emt 0:06:20]} a6 {[%emt 0:00:39]} 18. Nbd2 {[%emt 0:01:21]} f5 {[%emt 0:03:09]} 19. exf6 {[%emt 0:04:54]} Rxf6 {[%emt 0:00:01]} 20. Qe4 {[%emt 0:00:23]} Nf5 {[%emt 0:01:40]} 21. Nb3 {[%emt 0:02:18]} Qa7 {[%emt 0:09:14]} 22. Rf1 {[%emt 0:03:22]} Re8 {[%emt 0:01:59]} 23. Ne5 {[%emt 0:00:39]} Bc8 {[%emt 0:05:50]} 24. Ng4 {[%emt 0:00:47]} Rg6 {[%emt 0:14:45]} 25. Qxb4 {[%emt 0:00:57]} Rxg4 {[%emt 0:00:02]} 26. b6 {[%emt 0:00:06]} Rxb4 {[%emt 0:05:26]} 27. bxa7 {[%emt 0:00:03]} Bd7 {[%emt 0:00:18]} 28. Nc5 {[%emt 0:02:31]} Rb2+ {[%emt 0:00:02]} 29. Ke1 {[%emt 0:01:45]} Bc6 {[%emt 0:00:22]} 30. Bc4 {[%emt 0:00:32]} Nd4 {[%emt 0:14:53]} 31. Rc1 {[%emt 0:00:35]} b6 {[%emt 0:00:18]} 32. Nxa6 {[%emt 0:00:29]} Nc2+ {[%emt 0:00:03]} 33. Rxc2 {[%emt 0:00:42]} Rxc2 {[%emt 0:00:07]} 34. Nc7 {[%emt 0:00:09]} Rc1+ {[%emt 0:00:42]} 35. Ke2 {[%emt 0:00:06]} Rxf1 {[%emt 0:00:02]} 36. Kd3 {[%emt 0:01:17]} Rd8+ {[%emt 0:00:17]} 37. Kxc3 {[%emt 0:00:05]} Rc1+ {[%emt 0:00:04]} 38. Kb3 {[%emt 0:00:23]} Bxa4+ {[%emt 0:00:12]} 39. Kb4 {[%emt 0:00:44]} Rxc4+ {[%emt 0:00:14]} 40. Kxc4 {[%emt 0:00:05]} Bc6 {[%emt 0:04:49]} 0-1

[Event "2nd Late Dr Abul K C Chess-ch A 2022"]
[Site "Dhaka"]
[Date "2022.07.04"]
[Round "3.1"]
[White "Masum, Hossain"]
[Black "Mohammad Fahad, Rahman"]
[Result "0-1"]
[ECO "D35"]
[WhiteElo "2100"]
[BlackElo "2396"]
[Annotator "TA"]
[PlyCount "126"]
[EventDate "2022.07.03"]
[EventCountry "BAN"]
[SourceTitle "playchess.com"]
[Source "ChessBase"]
[SourceQuality "1"]
[TimeControl "5400+30"]

{[%evp 12,126,12,12,9,19,21,29,25,0,21,1,4,0,43,27,68,47,85,72,83,22,25,8,14,8,9,8,29,6,39,0,0,-10,0,0,0,0,0,0,0,-1139,0,-25,562,-1900,68,-50,-57,-180,-170,-175,-169,-217,-219,-207,-207,-219,-251,-351,-87,-384,-56,-317,-317,-108,-77,-68,-89,-129,-125,-120,-127,-117,-126,-126,-126,-121,-126,-126,-99,-287,-287,-279,-277,-294,-256,-239,-224,-29974,-29975,-29974,-29976,-29976,-29977,-29978,-29978,-29980,-29979,-29979,-29980,-29980,-29981,-29984,-29985,-29985,-29986,-29987,-29988,-29988,-29989,-29989,-29990,-29993,-29994,-29994,-29991]} 1. d4 {[%emt 0:02:25]} d5 {[%emt 0:03:35]} 2. c4 {[%emt 0:00:04]} c6 {[%emt 0:00:25]} 3. Nf3 {[%emt 0:00:04]} Nf6 {[%emt 0:00:11]} 4. Nc3 {[%emt 0:00:02]} e6 {[%emt 0:00:26]} 5. Bg5 {[%emt 0:01:17]} Nbd7 {[%emt 0:00:18]} 6. cxd5 {[%emt 0:00:06]} exd5 {[%emt 0:00:08]} 7. e3 {[%emt 0:00:10]} h6 {[%emt 0:00:53] D35: Queen's Gambit Declined: Exchange Variation.} 8. Bh4 {[%emt 0:01:10]} g5 {[%emt 0:00:17]} 9. Bg3 {[%emt 0:00:03]} Nh5 {[%emt 0:00:10] White has an edge.} 10. Be5 {[%emt 0:00:45]} Nxe5 {[%emt 0:01:03]} 11. Nxe5 {[%emt 0:00:03]} Nf6 {[%emt 0:00:48]} 12. Bd3 {[%emt 0:00:01] [#]} Qb6 $146 {[%emt 0:12:46]} ({Predecessor:} 12... Be6 13. O-O Bd6 14. f4 Qe7 15. Rc1 Rg8 16. Qf3 Bxe5 17. dxe5 Nd7 18. Ne2 gxf4 19. exf4 {½-½ (79) Gozzoli,Y (2600)-Sjugirov,S (2675) chess24.com INT 2020}) 13. O-O {[%emt 0:02:12]} Bd6 {[%emt 0:10:54]} 14. f4 {[%emt 0:01:25]} gxf4 {[%emt 0:06:44]} (14... Qxb2 15. Qe1 (15. Na4 Qa3 $11) 15... Bb4 16. fxg5 Qxc3 17. Qf2 $16) 15. Na4 {[%emt 0:00:01] Pair of Knights!} Qc7 {[%emt 0:01:57]} 16. Rxf4 {[%emt 0:00:02]} (16. exf4 $16 Rg8 17. Kh1) 16... Qe7 $11 {[%emt 0:06:17]} 17. Qf3 {[%emt 0:01:22]} Bxe5 {[%emt 0:00:51]} 18. dxe5 {[%emt 0:00:02]} Nd7 $132 {[%emt 0:00:01][%mdl 2048] Black is not keeping still} 19. e6 {[%emt 0:07:22]} Qxe6 {[%emt 0:01:43]} 20. Bf5 {[%emt 0:13:29]} Qe7 {[%emt 0:12:34]} (20... Ne5 $2 21. Qh3 Qe7 22. Bxc8 $18) 21. Rf1 {[%emt 0:02:03]} Ne5 {[%emt 0:03:24]} 22. Qh5 {[%emt 0:00:02]} Rg8 {[%emt 0:03:05]} 23. Bxc8 {[%emt 0:01:08]} Rxc8 {[%emt 0:00:13]} 24. Rf5 {[%emt 0:03:07]} Rg5 {[%emt 0:00:31]} 25. Qxh6 {[%emt 0:00:03]} Rxf5 {[%emt 0:01:44] Dancing on a razor blade.} 26. Rf2 $2 {[%emt 1:05:02][%mdl 8192]} (26. Rxf5 $11 Ng6 27. Qh3) 26... Rf4 $2 27. Rxf4 {[%emt 0:00:00]} Ng4 $2 {[%emt 0:00:53][%mdl 8192]} 28. Rf5 $4 {[%emt 0:00:00][%mdl 8192]} Kd7 $2 {[%emt 0:00:07] [#]} (28... Nxh6 $19 29. Rf3 Qh4) 29. Qh3 {[%emt 0:00:00]} (29. Qf4 $6 Qxe3+ 30. Qxe3 Nxe3 31. Rxf7+ Kd6 $11) (29. Nc5+ $1 $14 Kd8 30. Nxb7+ $1 {[%mdl 512]} Kd7 31. Nc5+ $1 Kd8 32. Qh8+ Kc7 33. Qd4 Qxe3+ 34. Qxe3 Nxe3 35. Rxf7+ Kd6 36. b4) 29... Rg8 $15 {[%emt 0:04:27]} 30. Rf4 {[%emt 0:00:00]} ({Better is} 30. Rf3 $1 $15 f6 31. Nc3) 30... Qxe3+ $19 {[%emt 0:01:06]} 31. Qxe3 {[%emt 0:00:00]} Nxe3 {[%emt 0:00:01]} 32. Rxf7+ {[%emt 0:00:00][%mdl 4096] Endgame KRN-KRN} (32. Nc5+ {keeps fighting.} Ke7 33. g3) 32... Ke6 {[%emt 0:00:37]} 33. Rf2 {[%emt 0:00:00]} d4 {[%emt 0:02:48]} 34. Nc5+ {[%emt 0:00:00]} Kd5 {[%emt 0:00:14]} 35. Nxb7 {[%emt 0:00:00]} d3 $2 {[%emt 0:03:17]} (35... c5 $19 {White must now prevent ...c4.} 36. g3 c4) 36. g3 $2 {[%emt 0:00:00][%mdl 8192]} (36. Rd2 $17 Rxg2+ 37. Rxg2 Nxg2 38. Kf2 (38. Kxg2 $2 d2 $19)) 36... Ng4 $2 {[%emt 0:10:15]} (36... c5 $19 37. b3 Rb8) 37. Rf7 $2 {[%emt 0:00:00][%mdl 8192]} (37. Rf5+ $1 $15 Kd4 38. Rf4+ Ke3 39. Nd6) 37... Ne5 {[%emt 0:00:40]} 38. Rf6 {[%emt 0:00:00]} Nc4 {[%emt 0:00:29][%mdl 1024] Against Rd6+. Black has strong compensation.} 39. b3 {[%emt 0:00:00]} Ke5 $1 {[%emt 0:00:17]} 40. Rf3 {[%emt 0:00:00]} ({Not} 40. Rxc6 $2 d2 41. Kf2 d1=Q $1 $19) 40... d2 $1 {[%emt 0:01:00]} 41. Rd3 {[%emt 0:00:00] And now Kf2 would win.} Rg4 $1 {[%emt 0:00:01] Threatens to win with ...Rd4.} 42. Nd6 {[%emt 0:05:25]} Nxd6 {[%emt 0:01:08]} 43. Rxd2 $17 {[%emt 0:00:01] KRN-KR} a5 {[%emt 0:02:23][%cal Ba7a5,Ba5a4,Ba4b3][%mdl 32]} 44. Rc2 {[%emt 0:01:00]} Kd5 {[%emt 0:00:17]} 45. Kf2 {[%emt 0:00:01]} a4 {[%emt 0:00:39]} 46. Kf3 $2 {[%emt 0:00:11] [#]} (46. Rd2+ $17 {might work better.} Ke6 47. Re2+ Kd7 48. h4) 46... axb3 $1 $19 {[%emt 0:01:27]} 47. axb3 {[%emt 0:02:29]} Rb4 {[%emt 0:00:01]} 48. Rc3 {[%emt 0:00:32]} Ne4 {[%emt 0:00:18]} 49. Rd3+ {[%emt 0:00:01] [#]} Ke5 $1 {[%emt 0:00:01][%cal Ob4b3] ( -> ...Rxb3!)} 50. Re3 {[%emt 0:00:06] [#]} (50. Kg2 $19) 50... Rxb3 $3 {[%emt 0:00:12][%mdl 512] Black mates.} 51. Rxb3 {[%emt 0:01:05] KR-KN} Nd2+ {[%emt 0:00:02]} 52. Ke3 {[%emt 0:00:01]} Nxb3 {[%emt 0:00:01] KN-KPP} 53. g4 {[%emt 0:00:06]} Nd4 {[%emt 0:09:51]} 54. h4 {[%emt 0:00:08]} Ne6 {[%emt 0:00:01]} 55. Kd3 {[%emt 0:02:34]} Kd5 {[%emt 0:00:54]} 56. Kc3 {[%emt 0:00:10]} c5 {[%emt 0:00:15][%cal Bc6c5,Bc5c4,Bc4c3,Bc3c2][%mdl 32]} 57. h5 {[%emt 0:00:45]} c4 {[%emt 0:00:11]} 58. h6 {[%emt 0:00:02]} Ng5 {[%emt 0:00:05]} 59. Kd2 {[%emt 0:00:16]} Kd4 {[%emt 0:05:04]} 60. Kc2 {[%emt 0:00:04]} c3 {[%emt 0:00:00]} 61. Kc1 {[%emt 0:00:38]} Kd3 {[%emt 0:00:00]} 62. Kd1 {[%emt 0:00:05]} c2+ {[%emt 0:00:00]} 63. Kc1 {[%emt 0:00:17]} Nh7 {[%emt 0:00:00] Weighted Error Value: White=0.79/Black=0.62} 0-1